bitfinex/quotes_ETHUSD_20250223
["timestamp","ask_amount","ask_price","bid_price","bid_amount"]
[1740282549261,0.07577489,2757.8,2757.7,16.14395782]
[1740282549465,0.07577489,2757.8,2757.7,15.43352056]
[1740282549699,6.1358275,2757.8,2757.7,15.17352056]
[1740282549882,9.1358275,2757.8,2757.7,0.88352056]
[1740282550083,10.77851011,2757.8,2757.7,0.3398156]
[1740282550385,10.77851011,2757.8,2757.7,5.6e-06]
[1740282550696,0.7913,2756.7,2756.4,2.49729426]
[1740282550894,3.62772,2756.6,2756.4,2.75629426]
[1740282551070,0.03469747,2756.5,2756.4,2.75629426]
[1740282551272,5.30516008,2756.5,2756.4,2.49729426]
[1740282551482,5.30516008,2756.5,2756.4,2.75629426]
[1740282552611,3.66247747,2756.5,2756.4,2.75629426]
[1740282553202,0.03469747,2756.5,2756.4,2.75629426]
[1740282553509,4.41885,2756.7,2756.4,2.75629426]
[1740282553685,0.03464803,2756.6,2756.4,2.75629426]
[1740282557726,3.66232803,2756.6,2756.4,2.75629426]
[1740282558523,3.66232803,2756.6,2756.4,2.49729426]
[1740282559523,3.62768,2756.6,2756.4,2.49729426]
[1740282562007,4.41883,2756.7,2756.4,2.49729426]
[1740282562842,3.62766,2756.6,2756.4,2.49729426]
[1740282563142,3.62766,2756.6,2756.4,2.34729426]
[1740282563855,4.41883,2756.7,2756.4,2.34729426]
[1740282564159,3.62733,2756.9,2756.4,2.34729426]
[1740282564361,4.43543,2756.9,2756.4,2.34729426]
[1740282566256,4.43543,2756.9,2756.4,2.24729426]
[1740282569674,0.8081,2756.9,2756.4,2.24729426]
[1740282569878,0.8081,2756.9,2756.4,5.87510426]
[1740282570079,4.43541,2756.9,2756.4,2.24729426]
[1740282570846,3.62749,2756.8,2756.4,2.24729426]
[1740282571056,3.62753,2756.7,2756.4,2.24729426]
[1740282571360,3.62749,2756.8,2756.4,2.24729426]
[1740282571738,3.3929674,2756.8,2756.4,2.24729426]
[1740282571934,4.43588,2756.5,2756.4,2.50729426]
[1740282572366,4.43588,2756.5,2756.4,0.26]
[1740282574669,0.8081,2756.5,2756.4,0.26]
[1740282575268,4.43588,2756.5,2756.0,5.39]
[1740282575587,4.43588,2756.5,2756.1,0.26]
[1740282575795,4.43588,2756.5,2756.2,0.26]
[1740282577257,3.62792,2756.4,2756.2,0.26]
[1740282578173,0.8081,2756.5,2756.2,0.26]
[1740282579866,3.7909,2756.7,2756.3,0.7765]
[1740282580169,7.41844,2756.7,2756.3,0.33939569]
[1740282580541,3.6278,2756.5,2756.3,0.33939569]
[1740282581164,3.62773,2756.6,2756.3,0.33939569]
[1740282581752,3.62773,2756.6,2756.2,0.26]
[1740282582176,3.62799,2756.4,2756.2,0.26]
[1740282582355,0.7909,2756.3,2756.2,0.26]
[1740282584575,0.7909,2756.6,2756.2,3.88816]
[1740282584761,0.7909,2756.6,2756.2,0.26]
[1740282585437,0.7909,2756.6,2756.3,0.34013684]
[1740282585877,10.25519,2756.7,2756.3,0.34013684]
[1740282586080,6.62756,2756.7,2756.3,0.34013684]
[1740282586376,3.0,2756.7,2756.3,0.34013684]
[1740282586554,3.0,2756.7,2756.2,1.00442192]
[1740282587172,3.0,2756.7,2756.2,4.63260192]
[1740282588477,3.62733,2756.9,2756.2,4.63248192]
[1740282588777,3.6274,2756.8,2756.2,4.63248192]
[1740282590199,3.6274,2756.8,2756.2,1.00442192]
[1740282590478,3.62791,2756.5,2755.9,0.7765]
[1740282590638,4.41881,2756.5,2756.0,0.26]
[1740282592782,3.62795,2756.4,2756.0,0.26]
[1740282595082,3.62795,2756.4,2756.1,0.26]
[1740282596180,3.62795,2756.4,2755.9,0.7765]
[1740282596370,3.62795,2756.4,2756.0,0.26]
[1740282598679,3.62795,2756.4,2755.8,9.01867]
[1740282598883,3.62845,2756.0,2755.9,0.26]
[1740282600049,7.2565,2756.2,2755.9,0.26]
[1740282600279,3.6285,2756.0,2755.6,5.39]
[1740282600585,3.62866,2755.9,2755.7,0.26]
[1740282600884,3.6285,2756.0,2755.7,0.26]
[1740282601853,3.62852,2756.0,2755.7,0.26]
[1740282602487,0.8097,2756.1,2755.7,0.26]
[1740282602882,4.43804,2756.1,2755.7,0.26]
[1740282603070,3.62825,2756.2,2755.7,0.26]
[1740282603258,3.62832,2756.1,2755.7,0.26]
[1740282603591,0.8097,2756.3,2755.7,3.88876]
[1740282603793,6.62799,2756.4,2755.8,0.8157]
[1740282604177,3.62823,2756.2,2755.7,0.26]
[1740282604493,6.62823,2756.2,2755.7,0.26]
[1740282604658,3.62842,2756.1,2755.7,0.26]
[1740282604995,6.62823,2756.2,2755.7,0.26]
[1740282605159,3.62864,2755.9,2755.6,6.2057]
[1740282605488,3.62864,2755.9,2755.6,5.39]
[1740282605688,3.62864,2755.9,2755.6,0.26]
[1740282605889,3.62873,2755.8,2755.6,0.26]
[1740282606592,4.42334,2755.7,2755.4,0.26]
[1740282608367,4.42306,2755.9,2755.4,1.0307]
[1740282608566,3.62833,2756.1,2755.4,1.0307]
[1740282608567,3.62848,2756.0,2755.4,1.0307]
[1740282608971,3.7944,2756.1,2755.4,4.65984]
[1740282609173,7.4228,2756.1,2755.4,1.0307]
[1740282610063,7.3728,2756.1,2755.4,1.0307]
[1740282610263,3.7444,2756.1,2755.4,4.65993]
[1740282610562,7.37278,2756.1,2755.4,1.0307]
[1740282611817,3.62863,2755.9,2755.4,1.0307]
[1740282614166,3.62863,2755.9,2755.4,1.496719]
[1740282615297,3.62851,2756.0,2755.4,1.496719]
[1740282616490,3.62825,2756.2,2755.5,3.62901]
[1740282617691,3.0,2756.1,2755.5,3.62901]
[1740282618307,3.6282,2756.2,2755.8,0.774]
[1740282618495,3.62832,2756.1,2755.8,0.774]
[1740282621605,3.62832,2756.1,2755.8,0.724]
[1740282623104,3.62832,2756.1,2755.4,4.095229]
[1740282623406,3.62864,2755.9,2755.5,0.11]
[1740282623777,0.8037,2756.0,2755.5,0.11]
[1740282624011,3.62846,2756.0,2755.5,0.11]
[1740282624411,7.432,2756.2,2755.5,3.73909]
[1740282624593,7.432,2756.2,2755.6,0.7641]
[1740282624594,3.62839,2756.1,2755.6,0.7641]
[1740282624917,3.62846,2756.0,2755.6,0.7641]
[1740282625210,7.25682,2756.1,2755.6,0.7641]
[1740282625376,7.25681,2756.1,2755.6,0.7641]
[1740282625579,3.62839,2756.1,2755.6,0.7641]
[1740282626079,3.62814,2756.3,2755.6,0.7641]
[1740282626287,0.8037,2756.4,2755.8,0.7641]
[1740282626498,3.0,2756.2,2755.8,0.7641]
[1740282627805,0.8037,2756.4,2755.8,0.7641]
[1740282628001,3.0,2756.3,2755.8,0.7641]
[1740282628203,7.25576,2756.5,2755.8,0.7641]
[1740282629013,13.0642574,2756.7,2755.9,3.62847]
[1740282629191,9.67129,2756.7,2756.0,4.39245]
[1740282629394,0.8037,2756.7,2756.1,3.62821]
[1740282629618,4.43122,2756.7,2756.0,4.3925]
[1740282629789,3.0,2756.6,2756.0,4.3925]
[1740282631017,3.0,2756.6,2756.0,0.7641]
[1740282631618,6.6277,2756.6,2756.2,0.73677899]
[1740282631919,3.0,2756.6,2756.2,0.73677899]
[1740282632326,6.62766,2756.6,2756.2,0.73677899]
[1740282632618,3.0,2756.6,2756.2,0.73677899]
[1740282632807,0.08002641,2756.5,2756.2,0.73677899]
[1740282635226,3.70786641,2756.5,2756.2,0.73677899]
[1740282636219,3.62792,2756.4,2756.2,0.73677899]
[1740282636421,0.7868,2756.4,2756.0,0.26]
[1740282636735,3.62831,2756.1,2755.7,0.26]
[1740282637027,3.70793647,2756.0,2755.7,0.26]
[1740282637696,7.33648647,2756.0,2755.7,0.26]
[1740282637894,3.70793647,2756.0,2755.7,0.26]
[1740282638325,7.33650647,2756.0,2755.7,0.26]
[1740282639440,3.70793647,2756.0,2755.7,0.26]
[1740282640105,7.33647647,2756.0,2755.7,0.26]
[1740282640504,0.07942647,2756.0,2755.7,0.26]
[1740282642759,0.07942647,2756.0,2755.8,4.45291]
[1740282642922,0.07942647,2756.0,2755.8,0.8243]
[1740282643123,3.62802,2756.4,2755.8,0.8243]
[1740282643347,0.07903659,2755.9,2755.8,0.8243]
[1740282643545,3.0,2756.2,2755.8,0.8243]
[1740282643753,0.07903659,2755.9,2755.8,0.8243]
[1740282644056,3.0,2756.2,2755.8,0.8243]
[1740282644263,0.07844781,2755.9,2755.8,0.8243]
[1740282644559,3.0,2756.2,2755.8,0.8243]
[1740282644727,3.62791,2756.5,2755.8,0.8243]
[1740282644924,6.62774,2756.6,2755.9,3.62847]
[1740282645141,10.25552,2756.6,2755.9,3.62847]
[1740282645770,0.8244,2756.7,2755.8,0.8243]
[1740282645771,7.2173674,2756.7,2755.8,0.8243]
[1740282646280,7.2563,2756.3,2755.8,0.8243]
[1740282646467,6.62792,2756.4,2755.8,0.8243]
[1740282646653,0.07859489,2756.2,2755.8,0.8243]
[1740282646839,3.70681391,2756.3,2755.8,0.8243]
[1740282647041,0.07854587,2756.1,2755.8,0.8243]
[1740282647257,0.07859489,2756.2,2755.8,0.8243]
[1740282647453,0.07849684,2756.0,2755.8,0.8243]
[1740282647667,10.25593,2756.4,2755.8,0.8243]
[1740282647840,0.07844781,2755.9,2755.8,0.8243]
[1740282648048,10.25593,2756.4,2755.8,0.8243]
[1740282648242,0.07844781,2755.9,2755.8,0.8243]
[1740282648444,3.0,2756.5,2755.8,4.45301]
[1740282648671,0.07844781,2755.9,2755.8,4.45292]
[1740282648843,6.62779,2756.5,2755.8,5.8261]
[1740282649045,0.07844781,2755.9,2755.8,4.45292]
[1740282649248,6.62779,2756.5,2755.8,4.45292]
[1740282649468,0.07844781,2755.9,2755.8,8.08155]
[1740282649647,6.62779,2756.5,2755.8,8.08155]
[1740282649867,0.07844781,2755.9,2755.8,8.08155]
[1740282650075,3.62818,2756.3,2755.8,2.197455]
[1740282650276,0.07844781,2755.9,2755.8,0.8243]
[1740282650475,3.62818,2756.3,2755.8,0.8243]
[1740282650682,0.07844781,2755.9,2755.8,0.8243]
[1740282650879,3.62818,2756.3,2755.8,0.8243]
[1740282651083,0.07844781,2755.9,2755.8,0.8243]
[1740282651318,3.62818,2756.3,2755.8,0.8243]
[1740282651505,0.07844781,2755.9,2755.8,0.8243]
[1740282651805,3.62819,2756.2,2755.8,0.8243]
[1740282652288,0.07854587,2756.1,2755.8,0.8243]
[1740282653558,3.0,2756.3,2755.8,0.8243]
[1740282654070,0.07859489,2756.2,2755.8,0.8243]
[1740282654570,6.62812,2756.3,2755.8,0.8243]
[1740282654785,0.07854587,2756.1,2755.8,0.8243]
[1740282655084,0.07849684,2756.0,2755.8,0.8243]
[1740282655456,3.0,2756.3,2755.8,0.8243]
[1740282655662,0.07844781,2755.9,2755.8,0.8243]
[1740282655858,3.0,2756.3,2755.8,0.8243]
[1740282656173,0.07844781,2755.9,2755.8,0.8243]
[1740282656374,3.0,2756.3,2755.8,0.8243]
[1740282656579,0.07856695,2755.9,2755.8,0.8243]
[1740282657063,3.0,2756.3,2755.8,0.8243]
[1740282657264,0.07856695,2755.9,2755.8,0.8243]
[1740282657458,3.0,2756.3,2755.8,0.8243]
[1740282657658,0.07856695,2755.9,2755.8,0.8243]
[1740282657890,3.0,2756.3,2755.8,0.8243]
[1740282658100,0.07856695,2755.9,2755.8,0.8243]
[1740282658274,3.0,2756.3,2755.8,0.8243]
[1740282658588,0.07856695,2755.9,2755.8,0.8243]
[1740282658756,6.62805,2756.3,2755.8,0.8243]
[1740282658961,0.07856695,2755.9,2755.8,0.8243]
[1740282659496,4.45889,2756.2,2755.8,0.8243]
[1740282659659,0.07856695,2755.9,2755.8,0.8243]
[1740282659863,4.45889,2756.2,2755.8,0.8243]
[1740282660063,0.07856695,2755.9,2755.8,0.8243]
[1740282660263,4.45889,2756.2,2755.8,0.8243]
[1740282660496,0.07856695,2755.9,2755.8,0.8243]
[1740282660800,3.0,2756.3,2755.8,4.45301]
[1740282660967,0.07856695,2755.9,2755.8,4.45301]
[1740282661169,3.0,2756.3,2755.8,4.45301]
[1740282661393,0.07856695,2755.9,2755.8,4.45301]
[1740282661595,3.0,2756.3,2755.8,4.45301]
[1740282661771,0.07856695,2755.9,2755.8,4.45301]
[1740282661971,3.0,2756.3,2755.8,4.45301]
[1740282662197,0.07856695,2755.9,2755.8,4.45301]
[1740282662404,3.0,2756.3,2755.8,4.45301]
[1740282662586,0.07856695,2755.9,2755.8,4.45301]
[1740282663199,3.0,2756.3,2755.8,0.8243]
[1740282663715,0.07871404,2756.2,2755.8,0.8243]
[1740282664016,3.70691404,2756.2,2755.8,0.8243]
[1740282664167,3.62834,2756.1,2755.8,0.8243]
[1740282664374,3.62858,2755.9,2755.7,5.39]
[1740282664677,0.07851792,2755.8,2755.7,5.39]
[1740282664907,0.07851792,2755.8,2755.5,0.26]
[1740282665308,3.62858,2755.9,2755.4,1.49602442]
[1740282665494,3.62897,2755.6,2755.4,0.71982442]
[1740282665809,0.90916888,2755.7,2755.4,0.71982442]
[1740282665810,4.45954,2755.7,2755.4,0.71982442]
[1740282666274,0.07812866,2755.6,2755.4,0.71982442]
[1740282667174,0.8307,2755.7,2755.4,0.71982442]
[1740282667374,0.07807961,2755.5,2755.4,0.71982442]
[1740282667599,4.45957,2755.7,2755.4,0.71982442]
[1740282667801,0.07807961,2755.5,2755.4,0.71982442]
[1740282667995,4.45957,2755.7,2755.4,0.71982442]
[1740282668189,0.07807961,2755.5,2755.4,0.71982442]
[1740282668374,3.629,2755.6,2755.4,0.71982442]
[1740282668578,0.07807961,2755.5,2755.4,0.71982442]
[1740282668777,3.70717961,2755.5,2755.4,0.71982442]
[1740282668976,3.6291,2755.5,2755.0,0.7762]
[1740282669180,3.62925,2755.4,2755.0,0.26]
[1740282669432,4.46013,2755.3,2755.0,0.26]
[1740282669637,3.62957,2755.2,2755.0,0.26]
[1740282670145,0.07771792,2755.1,2755.0,0.26]
[1740282671233,0.07771792,2755.1,2754.8,6.1662]
[1740282671531,0.8307,2755.3,2754.8,6.1662]
[1740282671532,3.62989,2754.9,2754.8,5.39]
[1740282671697,3.62989,2754.9,2754.7,0.1]
[1740282671897,3.63002,2754.8,2754.7,0.1]
[1740282672334,0.07682414,2754.8,2754.7,0.1]
[1740282672483,0.8307,2755.2,2754.7,0.8762]
[1740282672677,0.07682414,2754.8,2754.7,0.8762]
[1740282672882,0.8307,2755.4,2754.7,1.326843]
[1740282673180,3.0,2755.5,2755.0,3.62966]
[1740282673505,3.0,2755.5,2754.9,3.62978]
[1740282673717,3.62913,2755.5,2754.7,4.50628]
[1740282674212,0.8307,2755.6,2754.9,3.62979]
[1740282674417,0.8307,2755.6,2755.0,0.7762]
[1740282674604,3.62913,2755.5,2755.0,0.7762]
[1740282675519,3.70637603,2755.4,2755.0,0.7762]
[1740282675714,3.70637603,2755.4,2755.3,0.72448968]
[1740282677524,0.07705603,2755.4,2755.3,0.72448968]
[1740282677822,3.70628603,2755.4,2755.3,0.72448968]
[1740282680129,3.62957,2755.2,2754.8,0.7743]
[1740282680417,3.62957,2755.2,2754.7,0.1]
[1740282680721,0.07692875,2755.1,2754.7,0.1]
[1740282682489,3.62977,2755.0,2754.7,0.36]
[1740282682799,3.63002,2754.8,2754.7,0.1]
[1740282683197,3.70680157,2754.8,2754.7,0.1]
[1740282683525,0.07678157,2754.8,2754.7,0.1]
[1740282684302,0.7826,2755.0,2754.7,0.1]
[1740282684502,0.07667207,2754.8,2754.7,0.1]
[1740282684803,0.7826,2755.0,2754.7,0.1]
[1740282685213,0.07672114,2754.9,2754.7,0.1]
[1740282685635,3.0,2755.2,2754.8,0.781]
[1740282686036,0.07681925,2755.1,2754.8,0.781]
[1740282686333,0.07681925,2755.1,2754.8,4.41102]
[1740282686505,0.07681925,2755.1,2754.9,3.62986]
[1740282686707,3.7826,2755.5,2754.9,3.62986]
[1740282687031,3.7826,2755.5,2754.8,4.41102]
[1740282687222,3.7826,2755.5,2754.8,8.76269143]
[1740282687421,0.0769664,2755.4,2754.8,8.76269143]
[1740282688035,0.0769664,2755.4,2754.8,5.13267143]
[1740282688237,0.0769664,2755.4,2754.8,0.781]
[1740282688415,3.62952,2755.2,2754.8,0.781]
[1740282688817,0.07688547,2755.1,2754.7,0.1]
[1740282690236,0.07688547,2755.1,2754.7,3.73015]
[1740282690431,3.62924,2755.4,2754.7,5.109303]
[1740282690636,3.62924,2755.4,2754.7,3.73015]
[1740282691144,4.41181,2755.5,2754.8,3.63]
[1740282691442,0.07703261,2755.4,2754.8,3.63]
[1740282692647,3.07703261,2755.4,2754.7,3.73006]
[1740282693043,0.07703261,2755.4,2754.7,3.73005]
[1740282693442,3.62943,2755.3,2754.7,0.1]
[1740282693647,0.07685747,2755.2,2754.7,0.1]
[1740282694713,3.70643747,2755.2,2754.7,0.1]
[1740282696447,4.45441,2755.1,2754.7,0.1]
[1740282696845,0.07669629,2755.0,2754.7,0.1]
[1740282698146,0.07669629,2755.0,2754.7,3.73006]
[1740282698648,0.8247,2755.3,2754.7,3.73006]
[1740282699246,0.07687923,2755.2,2754.7,3.73006]
[1740282699617,0.07687923,2755.2,2754.7,0.1]
[1740282699818,3.70637923,2755.2,2754.7,0.1]
[1740282700953,0.07687923,2755.2,2754.7,0.1]
[1740282701524,3.70637923,2755.2,2754.7,0.1]
[1740282701722,3.62974,2755.1,2754.7,0.1]
[1740282702042,0.07678111,2755.0,2754.7,0.1]
[1740282703134,0.07678111,2755.0,2754.8,0.26]
[1740282703753,3.63001,2754.9,2754.7,0.1]
[1740282703956,0.8205,2754.8,2754.7,0.1]
[1740282704156,0.07668299,2754.8,2754.7,0.1]
[1740282704621,4.45028,2755.0,2754.7,0.1]
[1740282705023,0.07673205,2754.9,2754.7,0.1]
[1740282707443,0.07668299,2754.8,2754.7,0.1]
[1740282707653,4.40701,2755.2,2754.7,0.1]
[1740282707840,0.07683017,2755.1,2754.7,0.1]
[1740282710368,0.07683017,2755.1,2754.8,0.7915]
[1740282710667,3.7775,2755.3,2754.8,0.7915]
[1740282710963,0.07687923,2755.2,2754.8,0.7915]
[1740282711331,3.7775,2755.3,2754.8,0.7915]
[1740282711532,0.07683017,2755.1,2754.8,0.7915]
[1740282711763,0.07687923,2755.2,2754.8,4.42143]
[1740282712066,0.7775,2755.5,2754.9,3.62988]
[1740282712265,3.7775,2755.5,2754.9,3.62988]
[1740282712843,3.7775,2755.5,2755.0,0.72289243]
[1740282714676,0.07291047,2755.4,2755.0,0.72289243]
[1740282715051,3.62944,2755.3,2755.0,0.72289243]
[1740282715376,0.07281238,2755.2,2755.0,0.72289243]
[1740282715584,3.62963,2755.1,2755.0,0.72289243]
[1740282715873,3.70239332,2755.1,2754.7,0.1]
[1740282718476,0.07276332,2755.1,2754.7,0.1]
[1740282719187,3.70242332,2755.1,2754.7,0.1]
[1740282722582,3.62976,2755.0,2754.7,0.1]
[1740282722759,3.7022491,2755.0,2754.7,0.1]
[1740282723689,3.7022491,2755.0,2754.8,0.26]
[1740282728097,0.0724891,2755.0,2754.8,0.26]
[1740282729585,3.0724891,2755.0,2754.7,0.1]
[1740282729791,3.7023191,2755.0,2754.7,0.36]
[1740282730469,4.46072,2754.8,2754.7,0.36]
[1740282730672,0.90314397,2754.8,2754.7,0.36]
[1740282732496,0.90314397,2754.8,2754.7,0.1]
[1740282732497,4.53316397,2754.8,2754.7,0.1]
[1740282732672,4.53316397,2754.8,2754.7,0.36]
[1740282733295,4.53316397,2754.8,2754.7,0.1]
[1740282738607,0.90314397,2754.8,2754.7,0.1]
[1740282738811,0.07244397,2754.8,2754.7,0.1]
[1740282739300,3.819,2755.0,2754.7,0.1]
[1740282739504,0.07230094,2754.9,2754.7,0.1]
[1740282743205,0.07230094,2754.9,2754.8,0.8057]
[1740282743606,3.62965,2755.1,2754.7,0.1]
[1740282743814,0.07236058,2754.9,2754.7,0.1]
[1740282744018,3.0,2755.2,2754.7,0.1]
[1740282744314,3.62974,2755.1,2754.7,0.1]
[1740282744602,3.62984,2755.0,2754.7,0.1]
[1740282745308,3.62975,2755.1,2754.7,0.1]
[1740282745604,3.6995459,2755.0,2754.7,0.1]
[1740282745801,3.63002,2754.8,2754.7,0.1]
[1740282746201,3.69970777,2754.8,2754.7,0.1]
[1740282750070,0.06968777,2754.8,2754.7,0.1]
[1740282751183,3.69970777,2754.8,2754.7,0.1]
[1740282751604,0.06968777,2754.8,2754.7,0.1]
[1740282752790,3.69970777,2754.8,2754.7,0.1]
[1740282753221,0.06968777,2754.8,2754.7,0.1]
[1740282753721,0.06968777,2754.8,2754.7,0.81044509]
[1740282755326,6.69970777,2754.8,2754.7,0.81044509]
[1740282756023,3.06968777,2754.8,2754.7,0.81044509]
[1740282756892,6.69970777,2754.8,2754.7,0.1]
[1740282757522,3.06968777,2754.8,2754.7,0.1]
[1740282760495,0.06968777,2754.8,2754.7,0.1]
[1740282760709,0.7957,2755.1,2754.7,0.1]
[1740282760909,0.0684428,2755.0,2754.7,0.1]
[1740282765245,3.6982228,2755.0,2754.7,0.1]
[1740282765415,3.6982028,2755.0,2754.7,0.1]
[1740282766344,0.0684428,2755.0,2754.7,0.1]
[1740282766700,3.6982028,2755.0,2754.7,0.1]
[1740282767798,0.0684428,2755.0,2754.7,0.1]
[1740282769932,0.0684428,2755.0,2754.9,0.74282743]
[1740282772793,6.62924,2755.4,2755.0,0.7744]
[1740282772940,7.42488,2755.5,2755.0,0.7744]
[1740282773344,3.62926,2755.4,2755.0,0.7744]
[1740282773758,3.0,2755.3,2755.0,0.7744]
[1740282773964,5.24,2755.6,2755.1,3.62956]
[1740282774165,5.24,2755.6,2755.0,4.40409]
[1740282774483,5.24,2755.6,2755.0,5.37216242]
[1740282774684,3.0,2755.5,2755.0,5.37216242]
[1740282775264,5.24,2755.6,2755.2,3.62947]
[1740282775580,5.24,2755.6,2755.3,0.7674]
[1740282776034,3.0,2755.5,2755.3,0.7674]
[1740282776486,0.05448596,2755.4,2755.3,0.7674]
[1740282778672,3.0,2755.6,2755.3,0.7674]
[1740282778870,0.05448596,2755.4,2755.3,0.7674]
[1740282779075,3.0,2755.6,2755.3,0.7674]
[1740282779269,0.05448596,2755.4,2755.3,0.7674]
[1740282779774,3.0,2755.6,2755.3,0.7674]
[1740282780074,0.05448596,2755.4,2755.3,0.7674]
[1740282780283,3.0,2755.6,2755.3,0.7674]
[1740282780448,0.05448596,2755.4,2755.3,0.7674]
[1740282780647,4.44993,2756.0,2755.4,3.62922]
[1740282780865,0.05448596,2755.4,2755.3,0.7674]
[1740282781077,3.62884,2755.7,2755.4,0.26]
[1740282781369,0.05477638,2755.6,2755.4,0.26]
[1740282782984,4.50527638,2755.6,2755.4,0.26]
[1740282783182,6.6291,2755.5,2755.4,0.26]
[1740282783483,6.68382734,2755.5,2755.4,0.26]
[1740282786186,3.05472734,2755.5,2755.4,0.26]
[1740282788489,0.05472734,2755.5,2755.4,4.70863]
[1740282788653,0.05472734,2755.5,2755.4,1.550263]
[1740282788849,3.0,2755.8,2755.4,1.550263]
[1740282789115,0.05491302,2755.5,2755.4,1.0794]
[1740282789273,3.629,2755.6,2755.4,1.0794]
[1740282789582,0.05493292,2755.5,2755.4,1.0794]
[1740282789895,0.05493292,2755.5,2755.4,0.26]
[1740282790454,3.68403292,2755.5,2755.4,0.26]
[1740282790981,0.05493292,2755.5,2755.4,0.26]
[1740282791189,3.68403292,2755.5,2755.4,0.26]
[1740282791485,0.05493292,2755.5,2755.2,0.8194]
[1740282791693,3.6295,2755.2,2755.1,0.26]
[1740282792059,3.68428578,2755.2,2755.1,0.26]
[1740282792259,0.05478578,2755.2,2755.1,0.26]
[1740282792689,3.62937,2755.3,2755.1,0.26]
[1740282792911,0.05475926,2755.2,2755.1,0.26]
[1740282793108,3.62919,2755.5,2755.1,0.26]
[1740282793310,0.05485735,2755.4,2755.1,0.26]
[1740282794600,3.62937,2755.3,2755.1,0.26]
[1740282795005,0.05475926,2755.2,2755.1,0.26]
[1740282795411,3.62937,2755.3,2755.1,0.26]
[1740282795610,0.05475926,2755.2,2755.1,0.26]
[1740282795811,3.62937,2755.3,2755.1,1.0029321]
[1740282796009,0.05475926,2755.2,2755.1,1.0029321]
[1740282796222,3.62919,2755.5,2755.1,1.0029321]
[1740282796420,0.05475926,2755.2,2755.1,1.0029321]
[1740282796732,4.45032,2755.7,2755.1,1.91112931]
[1740282796898,0.05475926,2755.2,2755.1,4.6325421]
[1740282797102,4.45032,2755.7,2755.2,0.7698]
[1740282797518,3.62916,2755.5,2755.2,0.7698]
[1740282797825,0.05479767,2755.4,2755.2,0.7698]
[1740282799025,0.05474862,2755.3,2755.2,0.7698]
[1740282799226,3.62897,2755.6,2755.2,0.7698]
[1740282799429,0.05474862,2755.3,2755.2,0.7698]
[1740282799594,3.62897,2755.6,2755.2,0.7698]
[1740282799921,0.05474862,2755.3,2755.2,0.7698]
[1740282800128,3.62921,2755.5,2755.2,1.11168154]
[1740282800324,3.62891,2755.7,2755.2,0.7698]
[1740282800529,0.05479767,2755.4,2755.2,0.7698]
[1740282800730,3.62891,2755.7,2755.2,0.7698]
[1740282801100,0.05489575,2755.6,2755.2,0.7698]
[1740282801714,0.05489575,2755.6,2755.3,3.62929]
[1740282802245,0.05490639,2755.5,2755.2,0.7698]
[1740282802433,6.62873,2755.8,2755.2,5.10411554]
[1740282802643,0.05485735,2755.4,2755.2,5.10411554]
[1740282802873,6.62873,2755.8,2755.2,5.10411554]
[1740282803016,6.62872,2755.8,2755.3,3.62933]
[1740282803431,0.7778,2755.9,2755.3,3.62933]
[1740282803643,3.0,2755.7,2755.2,5.10412554]
[1740282804541,0.7778,2755.9,2755.2,1.47463554]
[1740282804823,3.0,2755.8,2755.3,3.62924]
[1740282805255,3.62891,2755.7,2755.2,0.7698]
[1740282806455,0.05299658,2755.6,2755.2,0.7698]
[1740282808556,2.42388325,2755.9,2755.2,0.7698]
[1740282808557,7.25842,2755.5,2755.2,0.7698]
[1740282808754,7.31136754,2755.5,2755.2,0.7698]
[1740282809119,3.68215754,2755.5,2755.2,0.7698]
[1740282811259,0.05294754,2755.5,2755.2,0.7698]
[1740282811937,7.31129754,2755.5,2755.2,0.7698]
[1740282812325,3.68211754,2755.5,2755.2,0.7698]
[1740282815230,3.62924,2755.4,2755.2,0.7698]
[1740282815430,3.68219154,2755.4,2755.2,0.7698]
[1740282817066,0.05295154,2755.4,2755.2,0.7698]
[1740282819066,3.68226154,2755.4,2755.2,0.7698]
[1740282826059,3.62936,2755.3,2754.9,6.1687]
[1740282826262,3.62971,2755.1,2755.0,0.259]
[1740282826440,3.62971,2755.1,2754.7,0.8787]
[1740282826654,3.63002,2754.8,2754.7,0.1]
[1740282827387,0.0526108,2754.8,2754.7,0.1]
[1740282827774,6.62976,2755.0,2754.7,0.8787]
[1740282828287,0.05265987,2754.9,2754.7,0.8787]
[1740282829494,3.0,2755.1,2754.7,0.8787]
[1740282829671,0.0526108,2754.8,2754.7,0.8787]
[1740282830483,3.0,2755.1,2754.7,0.8787]
[1740282830689,0.0526108,2754.8,2754.7,0.8787]
[1740282830877,3.0,2755.1,2754.7,0.8787]
[1740282831184,0.05233888,2754.8,2754.7,0.1]
[1740282831694,6.62971,2755.1,2754.7,0.1]
[1740282831892,0.05233225,2754.8,2754.7,0.1]
[1740282832071,6.62971,2755.1,2754.7,0.1]
[1740282832272,0.05233225,2754.8,2754.7,0.1]
[1740282832470,6.62971,2755.1,2754.7,0.1]
[1740282832782,3.0,2755.1,2754.7,0.1]
[1740282833107,3.68219037,2755.0,2754.7,0.1]
[1740282833261,3.63002,2754.8,2754.7,0.1]
[1740282833815,3.68235225,2754.8,2754.7,0.1]
[1740282834892,0.05233225,2754.8,2754.7,0.1]
[1740282835096,3.62996,2754.9,2754.7,0.1]
[1740282835297,0.05230572,2754.8,2754.7,0.1]
[1740282836081,4.48742572,2754.8,2754.7,0.1]
[1740282839177,0.05230572,2754.8,2754.7,0.1]
[1740282839873,0.8055,2755.1,2754.7,0.8798]